bitfinex/quotes_SOLUSD_20230103
["timestamp","ask_amount","ask_price","bid_price","bid_amount"]
[1672730183117,11.35339102,11.863,11.862,84.01133118]
[1672730184183,11.35339102,11.863,11.862,147.33133118]
[1672730187216,11.35339102,11.863,11.862,84.01133118]
[1672730187435,11.35339102,11.863,11.862,32.36250736]
[1672730188924,11.35339102,11.863,11.862,84.01133118]
[1672730189656,11.35339102,11.863,11.862,20.0]
[1672730190080,11.35339102,11.863,11.861,20.0]
[1672730196263,11.35339102,11.863,11.862,12.71979683]
[1672730196684,11.35339102,11.863,11.862,32.71979683]
[1672730200269,11.35339102,11.863,11.862,92.38528731]
[1672730201326,11.35339102,11.863,11.862,32.71979683]
[1672730201841,11.35339102,11.863,11.862,96.03979683]
[1672730202054,11.35339102,11.863,11.862,32.71979683]
[1672730202484,11.35339102,11.863,11.862,92.38528731]
[1672730203324,11.35339102,11.863,11.862,32.71979683]
[1672730204251,11.35339102,11.863,11.862,92.38528731]
[1672730205536,11.35339102,11.863,11.862,32.71979683]
[1672730206694,11.35339102,11.863,11.862,92.38528731]
[1672730208479,11.35339102,11.863,11.862,32.71979683]
[1672730209842,11.35339102,11.863,11.862,20.0]
[1672730211110,11.35339102,11.863,11.861,20.0]
[1672730211947,11.35339102,11.863,11.862,12.71979683]
[1672730212159,11.35339102,11.863,11.862,32.71979683]
[1672730215002,11.35339102,11.863,11.862,92.38528731]
[1672730216263,10.85339102,11.863,11.862,92.38528731]
[1672730216450,10.85339102,11.863,11.862,201.36135348]
[1672730216662,10.85339102,11.863,11.862,138.04135348]
[1672730219936,10.85339102,11.863,11.862,201.36135348]
[1672730220757,10.85339102,11.863,11.862,138.04135348]
[1672730221183,240.88363065,11.864,11.862,138.04135348]
[1672730221409,240.88363065,11.864,11.863,43.57318785]
[1672730221831,240.88363065,11.864,11.863,152.60785952]
[1672730235913,203.24556337,11.864,11.863,152.60785952]
[1672730236230,24.4854,11.879,11.864,136.27826715]
[1672730236427,157.9796,11.877,11.866,10.61056002]
[1672730236646,423.25,11.873,11.868,10.61056002]
[1672730236963,717.20276898,11.878,11.876,10.61056002]
[1672730237154,717.20276898,11.878,11.877,93.85056002]
[1672730237155,643.85287533,11.878,11.877,93.85056002]
[1672730237364,643.85287533,11.878,11.877,152.52041446]
[1672730237365,511.25018734,11.878,11.877,152.52041446]
[1672730237587,131.10370854,11.878,11.877,297.15623041]
[1672730237785,182.8202,11.891,11.884,51.09467632]
[1672730237996,117.4425,11.89,11.885,10.61056002]
[1672730238207,133.21323501,11.894,11.882,61.31280629]
[1672730238416,117.4425,11.893,11.887,10.61056002]
[1672730239060,117.4425,11.893,11.883,61.31280629]
[1672730239274,117.4425,11.893,11.872,10.61056002]
[1672730239275,12.92,11.89,11.872,10.61056002]
[1672730239489,12.92,11.89,11.879,12.36268799]
[1672730239680,163.8905,11.889,11.879,12.36268799]
[1672730239918,117.4425,11.889,11.879,12.36268799]
[1672730240093,117.4425,11.889,11.871,63.27]
[1672730240307,163.8905,11.888,11.873,11.66770286]
[1672730240528,163.8905,11.887,11.871,63.27]
[1672730240751,163.8905,11.886,11.871,63.27]
[1672730240937,165.1859,11.885,11.871,122.48786346]
[1672730241147,165.9892,11.884,11.871,122.48786346]
[1672730241799,165.9892,11.884,11.872,10.61056002]
[1672730242002,143.3246,11.883,11.871,10.61056002]
[1672730242644,143.3246,11.882,11.871,10.61056002]
[1672730243065,143.3246,11.882,11.872,20.0]
[1672730243279,143.3246,11.882,11.873,10.61056002]
[1672730243596,118.7379,11.881,11.874,20.0]
[1672730243806,143.3246,11.881,11.875,10.61056002]
[1672730244002,143.3246,11.881,11.874,20.0]
[1672730244212,143.3246,11.881,11.872,10.61056002]
[1672730244421,143.3246,11.881,11.874,10.61056002]
[1672730244656,143.3246,11.881,11.875,20.0]
[1672730245056,143.3246,11.881,11.873,20.0]
[1672730245276,143.3246,11.881,11.871,83.27]
[1672730245490,143.3246,11.881,11.872,10.61056002]
[1672730245804,143.3246,11.881,11.874,10.61056002]
[1672730245999,143.3246,11.881,11.875,20.0]
[1672730246629,143.3246,11.881,11.873,10.61056002]
[1672730246849,24.1393,11.88,11.874,20.0]
[1672730247062,24.1393,11.88,11.872,20.0]
[1672730247580,24.1393,11.88,11.873,64.27897956]
[1672730247789,24.1393,11.88,11.874,20.0]
[1672730248416,24.1393,11.88,11.871,87.43973446]
[1672730248731,137.7125,11.88,11.871,87.43973446]
[1672730248940,137.7125,11.88,11.871,83.27]
[1672730250206,22.8421,11.889,11.871,83.27]
[1672730250540,157.6418,11.888,11.874,10.61056002]
[1672730250726,157.6418,11.888,11.876,10.61056002]
[1672730250935,157.4309,11.887,11.871,20.0]
[1672730251179,157.4309,11.886,11.871,20.0]
[1672730251380,157.4309,11.885,11.871,20.0]
[1672730251577,157.4309,11.884,11.872,63.26]
[1672730251783,132.9712,11.883,11.873,20.0]
[1672730252418,132.9712,11.883,11.872,20.0]
[1672730252621,132.9712,11.882,11.872,20.0]
[1672730253479,132.4712,11.882,11.87,20.0]
[1672730253671,23.9718,11.881,11.871,63.27]
[1672730253879,23.9718,11.881,11.872,20.0]
[1672730254510,23.9718,11.881,11.87,20.0]
[1672730254844,22.5253,11.88,11.87,20.0]
[1672730257904,22.5253,11.88,11.871,63.27]
[1672730258120,22.5253,11.88,11.872,20.0]
[1672730258311,23.6518,11.879,11.872,20.0]
[1672730258732,23.6518,11.879,11.87,20.0]
[1672730258960,135.9307,11.879,11.87,20.0]
[1672730259147,135.9307,11.879,11.871,63.27]
[1672730259360,135.9307,11.879,11.872,20.0]
[1672730259569,135.4307,11.879,11.871,63.27]
[1672730259779,135.4307,11.879,11.872,20.0]
[1672730260422,135.4307,11.879,11.87,20.0]
[1672730260636,135.4307,11.879,11.871,63.27]
[1672730260848,135.4307,11.879,11.872,20.0]
[1672730261462,135.4307,11.879,11.87,20.0]
[1672730261674,135.4307,11.879,11.871,63.27]
[1672730261984,135.4307,11.879,11.872,20.0]
[1672730262736,135.4307,11.879,11.87,20.0]
[1672730262934,135.4307,11.879,11.871,63.27]
[1672730263139,135.4307,11.879,11.872,20.0]
[1672730263349,135.4307,11.879,11.872,79.21786346]
[1672730263570,135.4307,11.879,11.873,59.21786346]
[1672730263782,135.4307,11.879,11.874,20.0]
[1672730265561,135.4307,11.879,11.874,79.21786346]
[1672730267158,33.04651228,11.877,11.859,43.50349402]
[1672730267364,24.0688,11.878,11.866,53.22956312]
[1672730267576,22.8913,11.879,11.867,83.29]
[1672730267776,24.0688,11.878,11.867,106.6348]
[1672730267985,24.0688,11.878,11.867,227.36970671]
[1672730268618,24.0688,11.878,11.868,67.50534359]
[1672730268826,24.0688,11.878,11.869,83.28]
[1672730269979,24.0688,11.878,11.869,20.0]
[1672730271049,24.0688,11.878,11.87,63.27]
[1672730271246,24.0688,11.878,11.871,20.0]
[1672730271451,24.0688,11.878,11.872,63.26]
[1672730271662,24.0688,11.878,11.873,20.0]
[1672730271888,22.8913,11.879,11.873,20.0]
[1672730272077,22.8913,11.879,11.871,20.0]
[1672730272509,22.8913,11.879,11.87,20.0]
[1672730274199,22.8913,11.879,11.871,11.66757526]
[1672730274411,22.8913,11.879,11.872,20.0]
[1672730274723,22.8913,11.879,11.873,11.66757526]
[1672730275137,22.8913,11.879,11.874,20.0]
[1672730275552,22.8913,11.879,11.875,11.66757526]
[1672730276507,143.5517,11.88,11.875,11.66757526]
[1672730279773,143.5517,11.88,11.875,131.20844063]
[1672730279970,24.2069,11.887,11.884,11.66757526]
[1672730280181,30.0,11.893,11.885,20.0]
[1672730280390,93.14,11.895,11.885,20.0]
[1672730280391,77.2608,11.895,11.885,20.0]
[1672730280594,77.2608,11.895,11.886,11.66757526]
[1672730281544,30.0,11.893,11.882,35.887925]
[1672730281749,12.89,11.89,11.882,35.887925]
[1672730282610,76.06,11.89,11.882,47.55550026]
[1672730282925,76.06,11.89,11.882,35.887925]
[1672730283771,76.06,11.89,11.882,47.22732516]
[1672730284267,76.06,11.89,11.882,35.887925]
[1672730287313,30.0,11.889,11.882,0.007925]
[1672730287535,30.0,11.887,11.872,20.0]
[1672730287738,111.1156,11.886,11.872,20.0]
[1672730288154,111.1156,11.886,11.87,101.75189418]
[1672730288155,30.0,11.885,11.864,43.50349402]
[1672730288375,12.89,11.88,11.868,11.33940016]
[1672730288807,110.49025731,11.879,11.865,20.0]
[1672730289017,30.0,11.878,11.864,20.0]
[1672730289222,110.50025731,11.877,11.864,20.0]
[1672730289434,110.50025731,11.877,11.864,11.33940016]
[1672730289435,47.26025731,11.877,11.864,11.33940016]
[1672730289645,47.26025731,11.877,11.865,11.33940016]
[1672730290066,47.26025731,11.877,11.866,63.29]
[1672730290466,47.26025731,11.877,11.867,11.33940016]
[1672730290681,79.9064,11.878,11.867,11.33940016]
[1672730290891,33.94279782,11.877,11.867,11.33940016]
[1672730291522,79.9064,11.878,11.867,11.33940016]
[1672730291747,79.9064,11.878,11.864,68.54552179]
[1672730291950,34.34367885,11.877,11.865,20.0]
[1672730292916,142.96107885,11.877,11.865,31.33940016]
[1672730294990,142.96107885,11.877,11.866,63.29]
[1672730295421,108.6174,11.877,11.867,11.33940016]
[1672730295731,108.6174,11.877,11.868,63.28]
[1672730295941,108.6174,11.877,11.867,11.33940016]
[1672730296267,108.6174,11.877,11.869,11.33940016]
[1672730298906,1046.43654451,11.87,11.869,11.33940016]
[1672730299306,854.02902667,11.87,11.869,140.48978734]
[1672730299510,854.02902667,11.87,11.869,262.11249349]
[1672730299723,842.68962651,11.87,11.869,273.45189365]
[1672730299965,842.68962651,11.87,11.869,262.11249349]
[1672730300157,768.20545582,11.87,11.869,273.45189365]
[1672730300464,351.67873483,11.87,11.869,262.11249349]
[1672730300785,102.76825966,11.87,11.869,273.45189365]
[1672730300989,22.8536,11.88,11.874,0.09001834]
[1672730301194,22.8536,11.88,11.875,63.25]
[1672730301509,164.0092,11.884,11.876,46.12363707]
[1672730301725,164.0092,11.884,11.877,63.24]
[1672730301946,117.4815,11.884,11.877,109.76609318]
[1672730302266,117.4815,11.884,11.878,101.75952438]
[1672730302683,117.4815,11.884,11.879,53.88030374]
[1672730302895,134.2552,11.894,11.879,53.88030374]
[1672730303219,118.3878,11.893,11.879,62.99009787]
[1672730303431,63.16,11.892,11.879,62.99009787]
[1672730303634,181.5478,11.892,11.879,62.99009787]
[1672730303952,64.6,11.89,11.88,53.68475985]
[1672730304150,64.6,11.89,11.871,49.3716]
[1672730304151,63.17,11.889,11.871,49.3716]
[1672730304361,30.0,11.888,11.872,89.7154312]
[1672730304572,63.18,11.887,11.872,89.7154312]
[1672730304792,118.3878,11.886,11.873,60.60563707]
[1672730304989,118.3878,11.886,11.874,20.0]
[1672730305203,12.92,11.88,11.871,49.3716]
[1672730305529,12.92,11.88,11.872,45.9189]
[1672730305737,12.92,11.88,11.869,9.10979413]
[1672730306156,12.92,11.88,11.862,109.2389]
[1672730306366,167.8661,11.879,11.863,9.10979413]
[1672730306579,231.0961,11.879,11.864,63.31]
[1672730306982,119.7464,11.878,11.864,72.41979413]
[1672730307734,119.7464,11.877,11.865,20.0]
[1672730308373,30.0,11.875,11.863,63.31]
[1672730308555,110.4926,11.874,11.862,45.9189]
[1672730308992,110.4926,11.874,11.863,63.31]
[1672730309193,110.4926,11.874,11.862,45.9189]
[1672730309626,110.4926,11.874,11.863,83.31]
[1672730309839,110.4926,11.874,11.863,92.41979413]
[1672730310461,110.4926,11.874,11.864,9.10979413]
[1672730310771,110.4926,11.874,11.865,20.0]
[1672730311617,110.4926,11.874,11.865,29.10979413]
[1672730312042,110.4926,11.874,11.866,63.29]
[1672730312453,110.4926,11.874,11.867,9.10979413]
[1672730315099,110.4926,11.874,11.865,20.0]
[1672730315309,110.4926,11.874,11.864,20.0]
[1672730315519,110.4926,11.874,11.865,9.10979413]
[1672730317309,110.4926,11.874,11.866,20.0]
[1672730317740,110.4926,11.874,11.867,9.10979413]
[1672730319723,30.0,11.873,11.861,63.32]
[1672730319912,12.81,11.87,11.858,63.34]
[1672730320251,45.09965903,11.869,11.862,9.10979413]
[1672730320447,30.0,11.868,11.862,9.10979413]
[1672730320658,45.09965903,11.867,11.862,9.10979413]
[1672730322014,30.0,11.868,11.862,9.10979413]
[1672730323489,193.1572,11.874,11.863,83.31]
[1672730323904,193.1572,11.874,11.864,72.66209787]
[1672730324119,193.1572,11.874,11.865,83.3]
[1672730324434,193.1572,11.874,11.865,92.40979413]
[1672730324639,193.1572,11.874,11.866,9.10979413]
[1672730326447,163.1572,11.874,11.866,9.10979413]
[1672730326664,163.1572,11.874,11.867,63.29]
[1672730326866,114.4825,11.874,11.867,63.29]
[1672730327076,114.4825,11.874,11.868,9.10979413]
[1672730327489,30.0,11.875,11.868,9.10979413]
[1672730332345,30.0,11.875,11.865,69.1477]
[1672730333074,141.8574,11.875,11.865,69.1477]
[1672730333278,141.8574,11.875,11.865,78.61461166]
[1672730334025,141.8574,11.875,11.866,63.29]
[1672730334418,141.8574,11.875,11.867,9.46691166]
[1672730339487,111.8574,11.875,11.867,9.46691166]
[1672730351877,111.8574,11.875,11.868,63.28]
[1672730352288,111.8574,11.875,11.869,9.46691166]
[1672730352715,111.8574,11.875,11.87,59.36598173]
[1672730353041,111.8574,11.875,11.871,9.46691166]
[1672730353247,48.9575,11.876,11.871,9.46691166]
[1672730354412,30.0,11.879,11.871,9.46691166]
[1672730355891,40.0,11.876,11.871,9.46691166]
[1672730363655,40.0,11.876,11.868,23.2541]
[1672730363859,40.0,11.876,11.869,9.46691166]
[1672730369866,352.0,11.876,11.869,9.46691166]
[1672730370177,72.04069265,11.875,11.869,9.46691166]
[1672730375114,30.0,11.875,11.869,9.46691166]
[1672730377853,342.0,11.875,11.869,9.46691166]
[1672730378065,44.24445383,11.874,11.869,9.46691166]
[1672730379106,30.0,11.875,11.869,9.46691166]
[1672730381847,342.0,11.875,11.869,9.46691166]
[1672730382270,32.25103942,11.874,11.869,9.46691166]
[1672730382600,32.25138881,11.874,11.869,9.46691166]
[1672730382789,342.0,11.875,11.869,9.46691166]
[1672730383002,32.25192224,11.874,11.869,9.46691166]
[1672730383210,342.0,11.875,11.869,9.46691166]
[1672730383426,33.68914787,11.874,11.869,9.46691166]
[1672730383632,342.0,11.875,11.869,9.46691166]
[1672730383841,312.0,11.875,11.869,9.46691166]
[1672730384033,40.0,11.876,11.87,56.44563707]
[1672730384344,40.0,11.876,11.871,132.4607005]
[1672730384781,40.0,11.876,11.872,139.81500424]
[1672730385105,40.0,11.876,11.873,80.44902251]
[1672730385531,40.0,11.876,11.874,80.44902251]
[1672730385840,40.0,11.876,11.875,9.82471877]
[1672730387096,40.0,11.876,11.875,80.44902251]
[1672730388137,40.0,11.876,11.875,9.82471877]
[1672730391730,40.0,11.876,11.871,59.36598173]
[1672730391932,40.0,11.876,11.854,43.50349402]
[1672730391933,30.0,11.875,11.854,43.50349402]
[1672730392254,30.0,11.875,11.853,146.17306251]
[1672730392255,30.0,11.872,11.858,23.3571]
[1672730392457,44.70342355,11.871,11.859,63.33]
[1672730393074,211.86072355,11.871,11.859,63.33]
[1672730393290,211.86072355,11.871,11.86,10.18179537]
[1672730393614,167.1573,11.871,11.861,63.32]
[1672730394055,167.1573,11.871,11.861,73.50179537]
[1672730394241,167.1573,11.871,11.861,10.18179537]
[1672730394452,32.54925573,11.869,11.861,10.18179537]
[1672730395206,52.7782,11.87,11.861,10.18179537]
[1672730395416,172.7003,11.87,11.861,10.18179537]
[1672730395941,31.67380777,11.869,11.861,10.18179537]
[1672730396135,172.7003,11.87,11.861,10.18179537]
[1672730396670,484.7003,11.87,11.861,10.18179537]
[1672730396858,44.81290211,11.869,11.861,10.18179537]
[1672730401724,484.7003,11.87,11.861,10.18179537]
[1672730401725,172.7003,11.87,11.861,10.18179537]
[1672730404772,484.7003,11.87,11.861,10.18179537]
[1672730405380,32.9791945,11.869,11.861,10.18179537]
[1672730405590,484.7003,11.87,11.861,10.18179537]
[1672730408658,484.7003,11.87,11.859,87.8873]
[1672730408882,484.7003,11.87,11.86,9.34377091]
[1672730411375,22.7782,11.87,11.861,116.13547317]
[1672730411583,13.43442909,11.87,11.862,20.0]
[1672730411803,13.43442909,11.87,11.863,63.31]
[1672730412014,40.0,11.876,11.864,20.0]
[1672730412232,40.0,11.876,11.865,63.3]
[1672730412421,40.0,11.876,11.865,86.0024]
[1672730412645,40.0,11.876,11.866,20.0]
[1672730412854,40.0,11.876,11.867,63.29]
[1672730413088,40.0,11.876,11.867,125.36367155]
[1672730413278,40.0,11.876,11.868,62.07367155]
[1672730413492,40.0,11.876,11.869,63.28]
[1672730413707,40.0,11.876,11.869,188.46412205]
[1672730413919,40.0,11.876,11.87,72.19176197]
[1672730414453,40.0,11.876,11.871,72.19176197]
[1672730414770,40.0,11.876,11.872,9.08131147]
[1672730415083,40.0,11.876,11.872,72.19176197]
[1672730415487,40.0,11.876,11.873,9.08131147]
[1672730417187,40.0,11.876,11.873,72.19176197]
[1672730417398,112.6905,11.877,11.873,85.18412205]
[1672730417711,112.6905,11.877,11.874,9.08131147]
[1672730417902,24.2037,11.88,11.874,9.08131147]
[1672730418113,23.8922,11.881,11.875,52.99236008]
[1672730418323,118.3165,11.883,11.875,52.99236008]
[1672730418546,430.3165,11.883,11.875,52.99236008]
[1672730419715,118.3165,11.883,11.875,52.99236008]
[1672730420235,118.3165,11.883,11.875,61.81851993]
[1672730420449,118.3165,11.883,11.875,52.99236008]
[1672730420759,118.3165,11.883,11.874,8.82615985]
[1672730420954,142.5676,11.883,11.874,8.82615985]
[1672730421162,93.21,11.882,11.874,8.82615985]
[1672730421389,93.21,11.882,11.871,52.99236008]
[1672730421605,170.7601,11.882,11.872,8.82615985]
[1672730421807,170.7601,11.882,11.872,69.25699068]
[1672730422127,170.7601,11.882,11.873,8.82615985]
[1672730425805,140.7601,11.882,11.873,69.25699068]
[1672730425997,93.18,11.887,11.873,122.24935076]
[1672730426208,234.9437,11.887,11.874,8.82615985]
[1672730426629,234.9437,11.887,11.874,69.25699068]
[1672730426840,141.7637,11.886,11.874,69.25699068]
[1672730427050,63.19,11.885,11.874,69.25699068]
[1672730427265,141.7637,11.885,11.875,8.82615985]
[1672730427807,63.2,11.884,11.875,8.82615985]
[1672730428201,204.9537,11.885,11.875,8.82615985]
[1672730428839,30.0,11.884,11.874,60.43083083]
[1672730429047,53.7012,11.884,11.874,60.43083083]
[1672730429257,53.7012,11.884,11.873,8.82615985]
[1672730429459,30.0,11.882,11.873,8.82615985]
[1672730429669,63.22,11.881,11.873,8.82615985]
[1672730430932,30.0,11.88,11.87,24.9909]
[1672730431151,30.0,11.88,11.871,8.82615985]
[1672730432845,9.54979013,11.879,11.871,8.82615985]
[1672730433240,9.54979013,11.879,11.87,0.0009]
[1672730433241,93.23,11.878,11.87,0.0009]
[1672730433452,93.23,11.878,11.866,117.4675]
[1672730433453,30.0,11.877,11.866,117.4675]
[1672730433664,63.24,11.876,11.866,117.4675]
[1672730433873,66.63212425,11.875,11.865,8.82615985]
[1672730434101,63.25,11.874,11.865,8.82615985]
[1672730434321,36.63212425,11.873,11.866,8.82615985]
[1672730434507,49.2414,11.873,11.857,58.08]
[1672730434718,219.84136849,11.872,11.862,8.82615985]
[1672730435041,30.0,11.871,11.862,8.82615985]
[1672730435237,42.8963205,11.87,11.862,8.82615985]
[1672730436723,39.46131305,11.869,11.862,8.82615985]
[1672730436935,42.8963205,11.868,11.862,8.82615985]
[1672730437365,39.46131305,11.869,11.862,8.82615985]
[1672730437685,42.8963205,11.868,11.862,8.82615985]
[1672730438288,42.8963205,11.868,11.86,58.07]
[1672730439771,154.58581305,11.869,11.86,58.07]
[1672730439984,31.9823295,11.868,11.86,58.07]
[1672730440179,154.58581305,11.869,11.86,57.07]
[1672730440513,154.58581305,11.869,11.861,8.57821883]
[1672730440711,11.33231969,11.867,11.861,8.57821883]
[1672730441248,11.33231969,11.867,11.861,0.00821883]
[1672730441458,11.33231969,11.867,11.861,8.57821883]
[1672730441648,167.6825,11.869,11.861,8.57821883]
[1672730442406,167.6825,11.869,11.86,57.07]
[1672730442618,33.93667427,11.868,11.86,57.07]
[1672730442843,63.29,11.867,11.846,43.50349402]
[1672730443051,30.0,11.865,11.847,118.9278]
[1672730443262,118.17704654,11.864,11.848,8.57821883]
[1672730443470,30.0,11.863,11.848,8.57821883]
[1672730443670,118.18704654,11.862,11.848,8.57821883]
[1672730443881,30.0,11.861,11.848,8.57821883]
[1672730444202,213.55744654,11.86,11.848,8.57821883]
[1672730444724,54.86704654,11.858,11.848,8.57821883]
[1672730445560,191.03244654,11.858,11.848,8.57821883]
[1672730446208,191.03244654,11.858,11.848,61.20904966]
[1672730446421,136.1654,11.858,11.849,45.10569342]
[1672730446614,136.1654,11.858,11.849,53.2028277]
[1672730446829,136.1654,11.858,11.85,60.72796511]
[1672730447246,136.1654,11.858,11.851,60.72796511]
[1672730447575,136.1654,11.858,11.852,8.09713428]
[1672730448822,18.70988714,11.857,11.852,8.09713428]
[1672730449449,18.70988714,11.857,11.852,105.83365853]
[1672730449887,18.70988714,11.857,11.853,8.09713428]
[1672730450209,18.70988714,11.857,11.854,97.73652425]
[1672730450611,18.70988714,11.857,11.855,105.83365853]
[1672730450823,22.525,11.859,11.855,105.83365853]
[1672730451029,140.4582,11.862,11.856,105.83365853]
[1672730451245,116.7343,11.862,11.856,105.83365853]
[1672730451437,116.7343,11.862,11.857,105.83365853]
[1672730451881,116.7343,11.862,11.858,105.83365853]
[1672730452093,30.0,11.863,11.858,105.83365853]
[1672730452299,30.0,11.863,11.859,97.73652425]
[1672730452516,30.0,11.863,11.859,52.63083083]
[1672730452726,18.78084796,11.861,11.859,52.63083083]
[1672730452949,18.78084796,11.861,11.856,8.09713428]
[1672730453663,30.0,11.863,11.856,8.09713428]
[1672730453872,30.0,11.863,11.856,64.6272294]
[1672730454195,30.0,11.863,11.857,8.09713428]
[1672730456619,18.79858068,11.862,11.857,8.09713428]
[1672730457986,18.79858068,11.862,11.857,114.44146837]
[1672730459353,18.79858068,11.862,11.857,106.34433409]
[1672730460510,18.79858068,11.862,11.857,8.09713428]
[1672730461681,47.0941,11.864,11.857,8.09713428]
[1672730462612,47.0941,11.864,11.857,57.91137325]
[1672730462809,47.0941,11.864,11.857,114.44146837]
[1672730463020,18.81631042,11.863,11.857,114.44146837]
[1672730463437,18.81631042,11.863,11.857,155.30292365]
[1672730463651,47.269,11.868,11.857,155.30292365]
[1672730463856,18.79858068,11.862,11.857,155.30292365]
[1672730464067,18.79858068,11.862,11.857,114.44146837]
[1672730464821,47.269,11.868,11.857,114.44146837]
[1672730465667,47.269,11.868,11.86,12.82]
[1672730465859,649.02752274,11.893,11.868,149.24445215]
[1672730466076,125.302,11.892,11.87,12.9]
[1672730466400,30.0,11.89,11.871,5.37337833]
[1672730466711,63.17,11.889,11.872,8.09713428]
[1672730467030,111.9898,11.889,11.873,57.58601488]
[1672730467242,111.9898,11.889,11.873,109.96558719]
[1672730467436,111.9898,11.889,11.874,60.47670659]
[1672730467437,48.8198,11.888,11.874,60.47670659]
[1672730467767,63.18,11.887,11.875,8.09713428]
[1672730467960,63.18,11.887,11.875,118.06272147]
[1672730468170,63.18,11.887,11.876,57.58601488]
[1672730468389,63.18,11.887,11.876,118.06272147]
[1672730468918,63.18,11.887,11.876,8.09713428]
[1672730472791,30.0,11.886,11.877,109.96558719]
[1672730473011,30.0,11.886,11.867,46.5705]
[1672730473012,63.19,11.885,11.869,8.09713428]
[1672730473221,30.0,11.884,11.869,8.09713428]
[1672730473432,30.0,11.882,11.869,8.09713428]
[1672730473753,63.22,11.881,11.869,8.09713428]
[1672730474163,110.9506,11.881,11.869,8.09713428]
[1672730475426,110.9506,11.881,11.869,65.68314916]
[1672730475839,110.9506,11.881,11.87,8.09713428]
[1672730479864,12.86,11.88,11.868,48.8062]
[1672730480069,93.23,11.879,11.858,166.3613]
[1672730480280,166.711,11.879,11.863,8.09713428]
[1672730480602,30.0,11.877,11.863,8.09713428]
[1672730480797,30.0,11.875,11.863,8.09713428]
[1672730481002,63.25,11.874,11.863,8.09713428]
[1672730482783,181.3523,11.874,11.863,8.09713428]
[1672730491340,181.3523,11.874,11.861,24.0938]
[1672730491544,159.9592,11.873,11.862,8.09713428]
[1672730491753,63.26,11.872,11.862,8.09713428]
[1672730492177,197.9592,11.872,11.862,8.09713428]
[1672730492399,134.6992,11.872,11.862,8.09713428]
[1672730492799,63.23,11.878,11.862,8.09713428]
[1672730493132,222.1243,11.881,11.863,129.96558719]
[1672730493340,222.1243,11.881,11.863,290.55368719]
[1672730493654,222.1243,11.881,11.864,118.06272147]
[1672730493866,158.9043,11.88,11.865,30.0]
[1672730494053,158.9043,11.88,11.866,20.0]
[1672730494268,158.9043,11.88,11.866,85.68314916]
[1672730494479,158.9043,11.88,11.867,65.68314916]
[1672730494704,119.617,11.879,11.867,65.68314916]
[1672730494899,119.617,11.879,11.868,65.68314916]
[1672730495337,119.617,11.879,11.869,8.09713428]
[1672730498162,119.617,11.879,11.869,65.68314916]
[1672730498597,119.617,11.879,11.87,8.09713428]
[1672730498791,182.847,11.879,11.87,8.09713428]
[1672730499521,119.617,11.879,11.87,8.09713428]
[1672730499953,16.67386572,11.882,11.879,60.84393421]
[1672730500151,30.0,11.896,11.871,57.58601488]
[1672730500360,30.0,11.894,11.871,57.58601488]
[1672730500572,202.5807,11.893,11.871,65.68314916]
[1672730500802,30.0,11.892,11.871,65.68314916]
[1672730501013,30.0,11.89,11.872,57.58601488]
[1672730501325,63.17,11.889,11.873,8.09713428]
[1672730501540,180.8386,11.889,11.873,8.09713428]
[1672730502064,30.0,11.888,11.873,8.09713428]
[1672730502273,63.18,11.887,11.873,8.09713428]
[1672730502485,117.6686,11.886,11.873,8.09713428]
[1672730502678,63.19,11.885,11.873,8.09713428]
[1672730503012,117.6686,11.884,11.873,8.09713428]
[1672730503955,117.6686,11.884,11.873,65.68314916]
[1672730504366,117.6686,11.884,11.874,7.86946199]
[1672730504798,117.6686,11.884,11.874,65.45547687]
[1672730505120,117.6686,11.884,11.875,7.86946199]
[1672730505844,117.6686,11.884,11.874,57.58601488]
[1672730506161,117.6686,11.884,11.87,68.08956199]
[1672730506363,30.0,11.888,11.87,125.67557687]